Cogmind - Beta 16.1 @@@ ROGUE MODE // 2026.02.27 @ 20:39:31 Player: TheSkyeDoctor Result: Destroyed by C-17 Slicer with Blade Saw Performance ------------- Evolutions (2) 1000 Regions Visited (5) 1000 Robots Destroyed (124) 620 Value Destroyed (3682) 3682 Prototype IDs (4) 80 Alien Tech Used (0) 0 Bonus (687) 687 TOTAL SCORE: 7069 Bonus ------- High Alert Combat Kills 389 Follower Combat Kills 142 Entered Garrisons 200 Friendly Fire -44 Cogmind --------- Core Integrity 0/550 Matter 299/300 Energy 11/100 System Corruption 1% Temperature Critical (617) Movement Core (50) Location -8/Garrison Parts ------- > --- POWER (1) -------- (None) > --- PROPULSION (3) --- (None) > --- UTILITY (4) ------ (None) > --- WEAPON (3) ------- (None) > --- INVENTORY (5) ---- Heavy Ion Engine Nuclear Core Light Treads Light Treads Blade Saw Peak State ------------ > --- POWER ------------ Cooled Ion Engine > --- PROPULSION ------- Improved Treads Armored Treads Advanced Treads > --- UTILITY ---------- Improved Heat Sink Huge Storage Unit Improved Power Shielding Medium Armor Plating > --- WEAPON ----------- Advanced Beam Rifle Advanced Beam Rifle Heavy Flail > --- INVENTORY -------- Heavy Ion Engine Nuclear Core Light Treads Light Treads Improved Treads Improved Treads Wheel Heat Sink Heat Sink Compact Battery Structural Scanner Hardened Light Armor Plating Hardened Medium Armor Plating System Shield High-powered Tractor Beam Advanced Beam Cannon Rocket Launcher Blade Saw [Rating: 34] Favorites ----------- Power Cooled Ion Engine Engine Cooled Ion Engine Power Core Light Nuclear Core Propulsion Armored Treads Treads Armored Treads Wheel Wheel Utility Huge Storage Unit Device Heat Sink Storage Huge Storage Unit Processor Improved Targeting Computer Protection Improved Light Armor Plating Weapon Advanced Beam Rifle Energy Gun Advanced Beam Rifle Energy Cannon Advanced Beam Cannon Ballistic Gun Light Assault Rifle Ballistic Cannon Improved Light Cannon Launcher Rocket Launcher Impact Weapon Heavy Flail Slashing Weapon Blade Saw Build | -11 -10 -9 -8 -8 -8 ------- Run | Yrd Mat Mat Mat Sto Gar Slots Evolved 4 | . . 2 2 . . Power . | . . . . . . Propulsion 1 | . . . 1 . . Utility 2 | . . 2 . . . Weapon 1 | . . . 1 . . Parts Attached 57 | 7 6 6 18 17 3 Power 7 | 1 1 1 2 2 . Engine 6 | 1 1 1 1 2 . Core 1 | . . . 1 . . Reactor . | . . . . . . Propulsion 17 | 2 2 2 4 5 2 Treads 14 | 2 . 2 4 5 1 Leg . | . . . . . . Wheel 3 | . 2 . . . 1 Hover . | . . . . . . Flight . | . . . . . . Utility 17 | 2 1 2 6 5 1 Device 6 | 1 . 1 3 1 . Storage 3 | 1 1 . 1 . . Processor 1 | . . . . 1 . Hackware . | . . . . . . Protection 7 | . . 1 2 3 1 Artifact . | . . . . . . Weapon 16 | 2 2 1 6 5 . Energy Gun 6 | 2 1 . 1 2 . Energy Cannon 2 | . . . . 2 . Ballistic Gun 1 | . 1 . . . . Ballistic Cannon 1 | . . 1 . . . Launcher 3 | . . . 2 1 . Special Weapon . | . . . . . . Impact Weapon 1 | . . . 1 . . Slashing Weapon 2 | . . . 2 . . Piercing Weapon . | . . . . . . Special Melee Weapon . | . . . . . . Unidentified Prototypes 4 | . . . . 4 . Parts Lost 40 | . 5 1 13 10 11 Power 7 | . 1 1 2 2 1 Propulsion 11 | . 2 . 2 3 4 Utility 10 | . . . 4 3 3 Weapon 12 | . 2 . 5 2 3 Highest Loss Streak 11 | . 3 1 7 4 11 To Critical Strikes . | . . . . . . Average Backups 10 | 2 3 6 6 17 12 Power . | . . . . 1 2 Propulsion 3 | 1 1 1 2 6 3 Utility 4 | . 1 3 3 6 4 Weapon 1 | . . 1 . 3 1 Tool/Special . | . . . . . . Unused Backups 7 | . 1 . . . 6 Power 1 | . . . . . 1 Propulsion 3 | . 1 . . . 2 Utility 3 | . . . . . 3 Weapon . | . . . . . . Tool/Special . | . . . . . . Average Slot Usage (%) 94 | . 96 89 89 99 95 Engine 7 | . 13 10 3 8 7 Core 1 | . . . 4 . . Treads 23 | . 14 2 26 26 26 Wheel 3 | . 13 19 . . . Device 13 | . 14 17 16 10 9 Storage 9 | . 14 11 9 9 9 Processor 1 | . . . . 3 . Protection 9 | . . 6 8 13 17 Energy Gun 9 | . 16 11 6 10 8 Energy Cannon 2 | . . . . 4 9 Ballistic Gun 1 | . 8 5 . . . Launcher 2 | . . . 4 2 . Impact Weapon 4 | . . . 1 9 9 Slashing Weapon 2 | . . . 8 . . Peak Build Rating 34 | 7 7 16 29 34 32 Average Rating 23 | 5 6 9 23 31 30 On Entrance 14 | . 7 7 16 25 32 Avg Prop Armor Cover (%) 12 | . . . . 12 . Naked Turns 1 | . . . . . 1 Heaviest Build 105 | 13 16 23 102 105 105 Greatest Support 67 | 40 40 40 60 67 67 Greatest Overweight (x) 4 | 1 . 1 4 4 1 Average Overweight (x) . | . . . . 1 . Largest Inventory Capacity 25 | 8 10 10 25 25 25 Average Capacity 20 | 7 8 10 22 25 24 Most Carried 22 | 3 6 10 10 22 13 Average Carried 10 | 2 3 6 6 17 12 Final Capacity 25 | 8 10 10 25 25 5 Final Carried 13 | 3 5 10 10 13 5 Class Distribution -------------------- 100% | Mutant Dominant Class ---------------- Mutant | -10/Materials Mutant | -9/Materials Mutant | -8/Materials Mutant | -8/Storage Mutant | -8/Garrison Resources | -11 -10 -9 -8 -8 -8 ----------- Run | Yrd Mat Mat Mat Sto Gar Matter Collected 1539 | 216 122 104 601 496 . Remotely . | . . . . . . Salvage Created 3806 | 20 545 169 1083 1791 198 Parts 204 | 3 30 4 71 88 8 Haulers Intercepted 2 | . . . 2 . . Recyclers Shooed 6 | . 1 . 3 2 . Parts Field Recycled . | . . . . . . Retrieved Matter . | . . . . . . Parts Self-Destructed . | . . . . . . Prevented . | . . . . . . Parts Restored . | . . . . . . Kills | -11 -10 -9 -8 -8 -8 ------- Run | Yrd Mat Mat Mat Sto Gar Combat Hostiles Destroyed 88 | . 11 3 34 33 7 Melee 1 | . . . 1 . . Guns 38 | . 10 2 6 17 3 Cannons 9 | . . 1 1 4 3 AOE 37 | . . . 26 11 . Classes Destroyed 14 | 1 6 1 1 5 . Worker 5 | . 1 1 1 2 . Builder 6 | . 1 . 3 2 . Tunneler 3 | 1 . . 2 . . Hauler 2 | . . . 2 . . Recycler 8 | . 1 1 2 4 . Mechanic 3 | . . . . 3 . Operator 1 | . . . . 1 . Watcher 8 | . 3 1 3 1 . Swarmer 21 | . 3 . 11 3 4 Grunt 51 | . 8 2 20 18 3 Brawler 1 | . . . . 1 . Duelist 2 | . . . . 2 . Protector 1 | . . . . 1 . Sentry 12 | . . 1 3 8 . Best Kill Streak 10 | 1 7 2 10 10 4 Combat Bots Only 8 | . 3 2 7 8 4 Max Kills in Single Turn 5 | 1 1 1 5 4 1 Gunslinging . | . . . . . . Exploded 4 | . . . 4 4 . Melee 1 | . . . 1 . . Uniques/NPCs Destroyed . | . . . . . . Combat | -11 -10 -9 -8 -8 -8 -------- Run | Yrd Mat Mat Mat Sto Gar Hostile Shots Fired 528 | . 75 18 176 168 91 Missed 130 | . 14 6 49 51 10 Hits 398 | . 61 12 127 117 81 Melee 10 | . . . . 1 9 Projectile 388 | . 61 12 127 116 72 AOE 1 | . . . . 1 . Critical Strikes 15 | . 2 . 5 6 2 Damage Taken 6178 | . 748 162 2035 1890 1343 Core 756 | . 181 15 222 93 245 Absorbed by Shields . | . . . . . . Redirected to Shielding 106 | . . . . 95 11 Core Remaining (%) 74 | 100 27 96 . . . Volleys Fired 271 | 1 59 17 89 88 17 Largest 3 | 2 2 2 3 2 2 Hottest 129 | 90 90 73 103 129 129 Shots Fired 459 | 2 93 34 126 171 33 Gun 306 | 2 93 25 55 115 16 Cannon 92 | . . 9 20 46 17 Launcher 61 | . . . 51 10 . Special . | . . . . . . Kinetic 67 | . 30 17 20 . . Thermal 323 | 1 56 17 55 161 33 Explosive 61 | . . . 51 10 . Electromagnetic 8 | 1 7 . . . . Robot Hit Streak 9 | 2 6 6 8 9 5 Robot Miss Streak 7 | . 5 1 4 7 3 Penetration Max . | . . . . . . Secondary Targets 4 | . 3 . . 1 . Max Gunslinging Chain 1 | . 1 . . 1 . Shots Hit Robots 296 | 2 53 25 83 113 20 Core Hits 225 | 1 30 10 98 77 9 Critical Kills 2 | . . . 1 . 1 Critical Parts Destroyed 1 | . . . . 1 . Critical Strikes 22 | 1 4 . 3 12 2 Burn 18 | 1 4 . 1 11 1 Meltdown 1 | . . . . . 1 Smash 2 | . . . 1 1 . Sever 1 | . . . 1 . . Melee Attacks 30 | . . . 15 15 . Impact 20 | . . . 5 15 . Slashing 10 | . . . 10 . . Piercing . | . . . . . . Sneak Attacks 4 | . . . . 4 . Combat Hostiles . | . . . . . . Follow-up Attacks 2 | . . . 2 . . Damage Inflicted 9662 | 28 618 336 3838 4415 427 Guns 2914 | 25 608 178 403 1480 220 Cannons 1136 | . . 145 149 635 207 Explosions 4851 | . . . 3133 1718 . Melee 735 | . . . 153 582 . Ramming 26 | 3 10 13 . . . Kinetic 459 | . 129 181 149 . . Thermal 3625 | 13 440 142 488 2115 427 Explosive 4766 | . . . 3048 1718 . Electromagnetic 51 | 12 39 . . . . Impact 636 | . . . 54 582 . Slashing 99 | . . . 99 . . Piercing . | . . . . . . Highest Corruption 2 | . 2 . 1 1 1 Average Corruption 1 | . 1 . 1 1 1 Corruption Purged . | . . . . . . Corruption Blocked . | . . . . . . Effects 17 | . 2 . 2 11 2 Message Errors 6 | . 1 . . 5 . Matter Fused 7 | . 1 . 2 2 2 Heat Flow Errors 2 | . . . . 2 . Energy Discharges 1 | . . . . 1 . Misfires 1 | . . . . 1 . Overload Shots . | . . . . . . Overflow Damage 372 | . . . 73 299 . Projectiles 9 | . . . 4 5 . Explosions 119 | . . . 69 50 . Melee 244 | . . . . 244 . Knockbacks 2 | . . . . 2 . Impact 1 | . . . . 1 . Kinetic . | . . . . . . Secondary 1 | . . . . 1 . Self-Inflicted Damage 238 | . 5 6 213 14 . Shots 13 | . . . 12 1 . Rammed 3 | 1 1 1 . . . Targets Rammed 3 | 1 1 1 . . . Kicked . | . . . . . . Crushed . | . . . . . . Highest Temperature 768 | 30 362 87 238 562 768 Average Temperature 124 | 18 119 36 68 126 315 Received Heat Transfer 2793 | . 378 66 819 936 594 Effects 21 | . 5 . 1 8 7 Shutdowns 2 | . 1 . . 1 . Energy Bleed 2 | . 1 . 1 . . Interference 10 | . 3 . . 3 4 Short Circuit 2 | . . . . 1 1 Damage (minor) 1 | . . . . . 1 Damage (major) 3 | . . . . 3 . Damage (core) 1 | . . . . . 1 Siege Activations . | . . . . . . Martial Activations . | . . . . . . Shielding Activations . | . . . . . . Robots Disrupted . | . . . . . . Combat Hostiles . | . . . . . . Robots Corrupted 3 | . . . . 3 . Combat Hostiles 1 | . . . . 1 . Parts Fried 4 | . . . . 4 . Impact Corruptions 8 | . . . . 8 . Robots Melted 2 | . 1 . . . 1 Combat Hostiles 2 | . 1 . . . 1 Parts Melted 30 | 1 6 1 3 15 4 Heat Transferred 8651 | 111 1591 325 1094 4679 851 Parts Sabotaged . | . . . . . . Parts Stolen . | . . . . . . Parts Stripped . | . . . . . . Power Chain Reactions . | . . . . . . Alert | -11 -10 -9 -8 -8 -8 ------- Run | Yrd Mat Mat Mat Sto Gar Maximum Alert Level 3 | . . . 2 3 2 Low Security (%) 41 | 100 100 100 27 26 . Level 1 8 | . . . 13 9 . Level 2 46 | . . . 59 55 100 Level 3 3 | . . . . 8 . Level 4 . | . . . . . . Level 5 . | . . . . . . High Security . | . . . . . . Max Security . | . . . . . . Peak Influence 760 | . 101 45 695 760 615 Initial 490 | . . 12 5 222 490 Average 348 | . 49 10 411 445 563 Influence Increases 3007 | 5 301 107 1184 1255 155 Destroy 0b10 Robot/C 1820 | . 220 60 680 720 140 Destroy 0b10 Robot/NC 185 | 5 30 15 65 70 . Destroy Leader 370 | . 46 12 130 172 10 Allied During Kill 66 | . . . . 66 . Successful Hack 25 | . 5 5 . 15 . Disable Machine 195 | . . . 105 90 . Destroy Structure 271 | . . . 189 77 5 Lose Combat Pursuer 75 | . . 15 15 45 . Influence Decreases 2472 | 5 271 122 670 1030 374 Entered New Map 599 | . . 18 10 307 264 Time Decay 1438 | 5 221 99 530 583 . Lost Part 395 | . 50 5 130 100 110 Lost Ally 40 | . . . . 40 . Squads Dispatched 17 | . 2 2 6 7 . Investigation 2 | . . . 1 1 . Extermination . | . . . . . . Reinforcement 10 | . 2 2 4 2 . Assault 3 | . . . 1 2 . Garrison 2 | . . . . 2 . Intercept . | . . . . . . Searches Triggered . | . . . . . . Construction Impeded 3 | . . . 3 . . Haulers Reinforced . | . . . . . . Active Scanning Responses . | . . . . . . Cargo Convoy Interrupts . | . . . . . . Stealth | -11 -10 -9 -8 -8 -8 --------- Run | Yrd Mat Mat Mat Sto Gar Distress Signals 10 | . 3 2 3 2 . Communications Jammed . | . . . . . . Distress Signals . | . . . . . . Times Spotted 143 | . 19 10 52 50 12 Peak Tracking Total 12 | . 4 4 6 12 5 Tactical Retreats 5 | . . 1 1 3 . Traps | -11 -10 -9 -8 -8 -8 ------- Run | Yrd Mat Mat Mat Sto Gar Traps Triggered 10 | . 2 . 1 6 1 Indirectly . | . . . . . . Trap Hack Attempts . | . . . . . . Triggered . | . . . . . . Disarmed . | . . . . . . Reprogrammed . | . . . . . . Reused . | . . . . . . Traps Extracted . | . . . . . . Installed . | . . . . . . Triggered . | . . . . . . Machines | -11 -10 -9 -8 -8 -8 ---------- Run | Yrd Mat Mat Mat Sto Gar Machines Disabled 13 | . . . 7 6 . Max in Single Turn 2 | . . . 2 1 . Machines Repaired . | . . . . . . Machines Dismantled . | . . . . . . Machines Sabotaged . | . . . . . . Overloaded Fab Kills . | . . . . . . Hacking | -11 -10 -9 -8 -8 -8 --------- Run | Yrd Mat Mat Mat Sto Gar Machines Accessed 9 | . 1 2 2 4 . Terminals 8 | . 1 2 2 3 . Fabricators . | . . . . . . Repair Stations . | . . . . . . Recycling Units . | . . . . . . Scanalyzers . | . . . . . . Garrison Access 1 | . . . . 1 . Total Hacks 21 | . 6 5 3 7 . Successful 7 | . 2 2 . 3 . Failed 14 | . 4 3 3 4 . Catastrophic 3 | . 1 1 . 1 . Database Lockouts . | . . . . . . Manual 15 | . 6 5 2 2 . Terminals 19 | . 6 5 3 5 . Fabricators . | . . . . . . Repair Stations . | . . . . . . Recycling Units . | . . . . . . Scanalyzers . | . . . . . . Garrison Access 2 | . . . . 2 . Terminal Hacks 3 | . 1 . . 2 . Open Door 1 | . . . . 1 . Branch Access Points 1 | . . . . 1 . Zone Layout 1 | . 1 . . . . Fabricator Hacks . | . . . . . . Repair Station Hacks . | . . . . . . Recycling Unit Hacks . | . . . . . . Scanalyzer . | . . . . . . Garrison Access Hacks 1 | . . . . 1 . Unlock Access 1 | . . . . 1 . Unauthorized Hacks 3 | . 1 2 . . . Terminals 3 | . 1 2 . . . Botnet 3 | . 1 2 . . . Fabricators . | . . . . . . Repair Stations . | . . . . . . Recycling Units . | . . . . . . Scanalyzers . | . . . . . . Garrison Access . | . . . . . . Data Cores Recovered . | . . . . . . Used . | . . . . . . Hacking Detections 7 | . 1 2 2 2 . Full Trace Events 1 | . . . 1 . . Feedback Events . | . . . . . . Feedback Blocked . | . . . . . . Robot Schematics Acquired . | . . . . . . Robots Built . | . . . . . . Authchips . | . . . . . . Time . | . . . . . . Total Robot Build Rating . | . . . . . . Part Schematics Acquired . | . . . . . . Parts Built . | . . . . . . Authchips . | . . . . . . Time . | . . . . . . Total Part Build Rating . | . . . . . . Part Studies Acquired . | . . . . . . Parts Repaired . | . . . . . . Time . | . . . . . . Parts Recycled . | . . . . . . Recycled Matter . | . . . . . . Retrieved Matter . | . . . . . . Retrieved Components . | . . . . . . Parts Scanalyzed . | . . . . . . Part Schematics Acquired . | . . . . . . Parts Damaged . | . . . . . . Bothacking | -11 -10 -9 -8 -8 -8 ------------ Run | Yrd Mat Mat Mat Sto Gar Used RIF Installer . | . . . . . . Robots Hacked . | . . . . . . Non-combat . | . . . . . . Combat . | . . . . . . Robot Hacks Applied . | . . . . . . Relay Couplers Released . | . . . . . . Fabnet Peak Effective % . | . . . . . . Robots Rewired . | . . . . . . Allies Hacked . | . . . . . . Hacks Repelled . | . . . . . . Allies | -11 -10 -9 -8 -8 -8 -------- Run | Yrd Mat Mat Mat Sto Gar Total Allies 2 | . . . . 2 . Largest Group 2 | . . . . 2 . Highest-Rated Group 62 | . . . . 62 . Highest-Rated Ally 31 | . . . . 31 . Total Orders . | . . . . . . Ally Attacks 26 | . . . . 26 . Total Damage 349 | . . . . 349 . Kills 4 | . . . . 4 . Allies Corrupted . | . . . . . . Allies Melted . | . . . . . . Intel | -11 -10 -9 -8 -8 -8 ------- Run | Yrd Mat Mat Mat Sto Gar Active Infowar (turns) 1534 | 43 516 330 645 . . Structural 840 | . . 195 645 . . Seismic 998 | 43 516 330 109 . . Robot Analysis Total . | . . . . . . Derelict Logs Recovered . | . . . . . . Drone Launches . | . . . . . . Drone Recoveries . | . . . . . . Exploration | -11 -10 -9 -8 -8 -8 ------------- Run | Yrd Mat Mat Mat Sto Gar Turns Passed 4464 | 112 532 330 1488 1809 193 Spaces Moved 1880 | 68 368 276 509 603 56 Core 15 | 14 . . . . 1 Treads 1338 | 54 93 24 509 603 55 Legs . | . . . . . . Wheels 527 | . 275 252 . . . Hover . | . . . . . . Flight . | . . . . . . Fastest Speed 50 | 50 80 80 170 230 50 Average Speed 187 | 139 100 93 237 242 226 Slowest Speed 490 | 160 160 170 490 490 230 Overloaded Moves . | . . . . . . Propulsion Burnouts . | . . . . . . Robots Hopped . | . . . . . . Potential Cave-ins . | . . . . . . Cave-ins Triggered . | . . . . . . Exploration Rate (%) 40 | 5 69 30 39 83 17 Regions Visited 5 Branch Regions 1 Pre-discovered Areas . | . . . . . . Known Exits Taken 1 | . . . . 1 . Unknown Exits Taken 4 | 1 1 1 1 . . Scrap Searched . | . . . . . . Spaces Dug 9 | . . . 6 3 . Terrain Destroyed 309 | . . . 229 80 . Melee 3 | . . . . 3 . Projectile 2 | . . . 1 1 . AOE 304 | . . . 228 76 . Terrain Rammed . | . . . . . . Walls Destroyed . | . . . . . . Machines Disabled . | . . . . . . Actions | -11 -10 -9 -8 -8 -8 --------- Run | Yrd Mat Mat Mat Sto Gar Total 2324 | 79 443 318 636 758 90 Wait 15 | . 2 5 . . 8 Move 1875 | 67 367 275 508 602 56 Hop . | . . . . . . Pick Up 43 | 3 6 11 7 16 . Fast Attach 20 | 7 2 . 8 3 . Attach 30 | . 3 5 8 10 4 Detach 2 | . . . 1 1 . Swap 14 | . 1 1 2 10 . Drop 16 | . 2 3 1 7 3 Fire 271 | 1 59 17 89 88 17 Melee 27 | . . . 12 15 . Ram 2 | . 1 1 . . . Kick . | . . . . . . Crush 1 | 1 . . . . . Escape Stasis 8 | . . . . 6 2 Rewire . | . . . . . . Trap . | . . . . . . Miscellaneous . | . . . . . . Route ------- -11/Scrapyard -10/Materials -9/Materials (discovered 2 exits: *Mat / [*Min]) -8/Materials -8/Storage (discovered 3 exits: [*Fac] / Rec / Gar) -8/Garrison History --------- Turn | Location | Event 13 | -11/Scrapyard | Discovered new exit (range 16) 113 | -11/Scrapyard | Entered Materials 325 | -10/Materials | Build established: Mutant 384 | -10/Materials | Core integrity fell below 50% 418 | -10/Materials | Lost 3 parts (1p2n) 642 | -10/Materials | Discovered new exit (range 3) 645 | -10/Materials | Entered another Materials area 645 | -9/Materials | Evolved 2 slots: Utility x2 892 | -9/Materials | Discovered new exit (range 13) 929 | -9/Materials | Discovered new exit (range 16) 975 | -9/Materials | Entered another Materials area 975 | -8/Materials | Evolved 2 slots: Propulsion x1, Weapon x1 1115 | -8/Materials | Lost 4 parts (1p2u1w) 1614 | -8/Materials | Destroyed 7 combat bots 1844 | -8/Materials | Lost 7 parts (1p2n2u2w) 2175 | -8/Materials | First assault squad dispatched 2384 | -8/Materials | Discovered new exit (range 15) 2463 | -8/Materials | Entered Storage 2868 | -8/Storage | Met a pair of Derelict thieves 3026 | -8/Storage | Destroyed 8 combat bots 3251 | -8/Storage | Core integrity fell below 50% 3402 | -8/Storage | Lost 3 parts (1n1u1w) 4067 | -8/Storage | Discovered new exit (range 15) 4100 | -8/Storage | Garrison activated, responded to threat 4154 | -8/Storage | Identified exit to Recycling 4207 | -8/Storage | Lost 4 parts (2n1u1w) 4269 | -8/Storage | Identified exit to Garrison 4272 | -8/Storage | Entered Garrison 4306 | -8/Garrison | Triggered checkpoint 4416 | -8/Garrison | Triggered checkpoint 4416 | -8/Garrison | Triggered checkpoint 4462 | -8/Garrison | Core integrity fell below 20% 4465 | -8/Garrison | Destroyed by C-17 Slicer with Blade Saw Last Messages --------------- 04454_ Overheating: System interference. 04454_ Rocket Launcher temporarily disabled. 04456_ Overheating: System interference. 04456_ Adv. Beam Cannon temporarily disabled. 04456_ Hrd. Medium Armor Plating severed. 04457_ Adv. Treads destroyed. 04459_ Overheating: Hrd. Light Armor Plating damaged (-18). 04459_ Rocket Launcher destroyed. 04459_ Imp. Treads destroyed. 04460_ Imp. Treads broken. 04460_ Overheating: Short circuit. 04462_ Broken Imp. Treads destroyed. 04462_ Imp. Heat Sink destroyed. 04463_ Hvy. Flail destroyed. 04463_ Hrd. Light Armor Plating destroyed. 04463_ Dropped Huge Storage Unit. 04464_ Dropped Adv. Beam Cannon. 04464_ Dropped Wheel. 04465_ Overheating: Core damaged (-71). Map ----- +----------------------------------------------------+ | ?????????????????????????????????????????????????? | | ?????????????????????????????????????????????????? | | ?????????????????????????????????????????????????? | | ?????????????????????????????????????????????????? | | ?????????????????????????????????????????????????? | | ?????????????????????????????????????????????????? | | ?????????????????????????????????????????????????? | | ?????????????????????????????????????????????????? | | ?????????????????????????????????????????????????? | | ?????????????????????????????????????????????????? | | ?????????????????????????????????????????????????? | | ?????????????????????????????????????????????????? | | ?????????????????????????????????????????????????? | | ?????????????????????????????????????????????????? | | ?????????????????????##""""#?#######?????????????? | | ??????????????####??? ? ??????????????? | | ??????????????? ??? ? ???????????????? | | ???????????????? ?? ? ????????????????? | | ?????????????????# ?# ## #????????????????? | | ?????????????????# ## ## ##???????????????? | | ?????????????????" ????????????????? | | ?????????????????" "????????????????? | | ??????????????????? "????????????????? | | ????????????????????? "????????????????# | | ?????????????????#????# g## #???????????????# | | ??????????????#### ^ ## @!## #??????????????? | | ??????????? c!!%%= #??????????????? | | ??????????? c!] #??????????????? | | ???????????####### g #???????????????# | | ?????????????????## ##*= g## ##???????????????# | | ??????????????????# ??#%[ ## #????????????????# | | ??????????????????#???####### #????????????????# | | ????????????????????????????# #????????????????#% | | ????????????????????????????# #??????????#######^ | | ????????????????????????????# #??????????# = | | ????????????????????????????# #??????????# #####% | | ????????????????????????????# ##############???#[ | | ????????????????????????????# #???#* | | ????????????????????????????# #####% | | ????????????????????????????############## = | | ?????????????????????????????????????????# ###### | | ?????????????????????????????????????????# #????? | | ?????????????????????????????????????????# #????? | | ?????????????????????????????????????????# #????? | | ?????????????????????????????????????????# ###??? | | ?????????????????????????????????????????# #??? | | ?????????????????????????????????????????# #??? | | ?????????????????????????????????????????# #??? | | ?????????????????????????????????????????######??? | | ?????????????????????????????????????????????????? | +----------------------------------------------------+ Best States ------------- Heat Dissipation 51 Energy Generation 23 Energy Capacity 280 Matter Stores 300 Matter Capacity 300 Sight Range 16 Terrain Scan Density 10 Armor Coverage 375 Power Shielding 66 Evasion (%) 50 Targeting Accuracy 6 Recoil Reduction 3 Item Schematics ----------------- None Robot Schematics ------------------ None Fabricated ------------ Nothing Repaired ---------- Nothing Studied --------- None Alien Tech Used ----------------- None Achievements -------------- None Challenges ------------ None Game ------ Seed BlastPulsarWeb Manual? 0 Play Time 00:31:49 Cumulative 47.7 hours Start 2026.02.27 @ 20:08:03 End 2026.02.27 @ 20:39:31 Sessions 1 Manual Loads 0 Difficulty Rogue Special Mode None Game No. 113 Rogue 113 Adventurer 0 Explorer 0 Win Type - Total 0 Types 0/0/0/0/0/0/0/0/0/0 Lore% 29 Gallery% 38 Achievement% 29 Wizard Run 0 Options --------- Layout 2 ASCII 0 Keyboard 1 Movement Arrows Keybinds 0 Fullscreen 1 Font 24/Smallcaps Map View 50x44 Zoom Use 0% Tactical HUD 1 Map Filters NONE Filters NONE Steam 1 RUN: 8cd653be-688a-4e43-bd6f-65fec2194bb5